fUST/lending_fUST_20260111
["ID","MTS","AMOUNT","RATE_DAILY","PERIOD"]
[401311429,1768126250557,-162.380719,0.00034535,3]
[401311430,1768126250566,-223.13477496,0.00034535,3]
[401311431,1768126250576,-250.0,0.00034535,3]
[401311432,1768126250588,-2150.738,0.00034535,3]
[401311433,1768126250596,-271.40103972,0.00034535,3]
[401311434,1768126250606,-5000.0,0.00034536,3]
[401311435,1768126250615,-932.46362,0.000346,16]
[401311436,1768126250624,-381.0,0.000346,7]
[401311437,1768126250634,-8615.8223582,0.00034609,2]
[401311438,1768126250644,-1627495.94750935,0.0003465,2]
[401311439,1768126251022,-500.0,0.00011,2]
[401311440,1768126251033,-283.8218406,0.00011,2]
[401311441,1768126251042,-500.0,0.00011137,2]
[401311442,1768126251052,-500.0,0.00011274,2]
[401311443,1768126251062,-500.0,0.00011411,2]
[401311444,1768126251073,-337.35985221,0.00011548,2]
[401311445,1768126251083,-12757.2354021,0.000129,2]
[401311446,1768126251093,-1087.80747027,0.00029621,2]
[401311447,1768126251102,-1087.80747027,0.00031997,2]
[401311448,1768126251112,-274.99,0.00032877,10]
[401311449,1768126251122,-487.40054101,0.0003465,2]
[401311450,1768126387371,197.83,6.542e-05,2]
[401311451,1768126387776,263.77,6.827e-05,2]
[401311452,1768126388187,329.71,7.111e-05,2]
[401311453,1768126395105,395.66,7.396e-05,2]
[401311454,1768126395514,461.6,7.68e-05,2]
[401311455,1768126395943,527.54,7.965e-05,2]
[401311456,1768126396420,593.49,8.249e-05,2]
[401311457,1768126396731,659.43,8.533e-05,2]
[401311458,1768126466446,156.11,7.817e-05,2]
[401311459,1768126466837,178.41,8.107e-05,2]
[401311460,1768126467239,200.71,8.396e-05,2]
[401311461,1768126480238,-223.01,8.686e-05,2]
[401311462,1768126660182,-843.0,9.41e-05,2]
[401311463,1768126660206,-300.0,9.41e-05,2]
[401311464,1768126682746,300.0,9.409e-05,2]
[401311465,1768126712105,500.0,9.409e-05,2]
[401311466,1768126712400,500.0,9.409e-05,2]
[401311467,1768126712464,500.0,9.409e-05,2]
[401311468,1768126712512,500.0,9.409e-05,2]
[401311469,1768126712560,500.0,9.409e-05,2]
[401311470,1768126712611,500.0,9.409e-05,2]
[401311471,1768126712663,578.96030956,9.409e-05,2]
[401311472,1768126712712,500.0,9.409e-05,2]
[401311473,1768126712761,500.0,9.409e-05,2]
[401311474,1768126712809,500.0,9.409e-05,2]
[401311475,1768126712857,500.0,9.409e-05,2]
[401311476,1768126712909,500.0,9.409e-05,2]
[401311477,1768126712957,500.0,9.409e-05,2]
[401311478,1768126713017,500.0,9.409e-05,2]
[401311479,1768126713077,191.90507331,9.409e-05,2]
[401311480,1768126713136,500.0,9.409e-05,2]
[401311481,1768126713196,500.0,9.409e-05,2]
[401311482,1768126802191,300.0,9.409e-05,2]
[401311483,1768126803916,425.28,5e-05,2]
[401311484,1768126804578,425.28,5.5e-05,2]
[401311485,1768126805058,425.28,6e-05,2]
[401311486,1768126805392,552.0,9.41e-05,2]
[401311487,1768126805641,425.28,6.5e-05,2]
[401311488,1768126806416,425.28,7.1e-05,2]
[401311489,1768126806977,425.28,7.6e-05,2]
[401311490,1768126807541,425.28,8.1e-05,2]
[401311491,1768126808122,425.28,8.6e-05,2]
[401311492,1768126808699,425.28,9.1e-05,2]
[401311493,1768126862615,300.0,9.41e-05,2]
[401311494,1768126882341,127.85620453,0.00023567,94]
[401311495,1768126882367,185.36863683,0.00023567,94]
[401311496,1768126882391,71.32699762,0.00023567,94]
[401311497,1768126883122,114.04163921,0.00023699,102]
[401311498,1768126883147,185.36863683,0.00023699,102]
[401311499,1768126883170,85.14156294,0.00023699,102]
[401311500,1768126883910,9.58648302,0.00023832,110]
[401311501,1768126883934,185.0,0.00023832,110]
[401311502,1768126883958,185.0,0.00023832,110]
[401311503,1768126883988,4.96535596,0.00023832,110]
[401311504,1768126922728,300.0,9.41e-05,2]
[401311505,1768126982682,300.0,9.41e-05,2]
[401311506,1768127102168,300.0,9.41e-05,2]
[401311509,1768127162447,300.0,9.41e-05,2]
[401311535,1768127222474,300.0,9.41e-05,2]
[401311559,1768127282378,300.0,9.41e-05,2]
[401311576,1768127336223,10516.61461713,9.311e-05,2]
[401311605,1768127432677,-500.0,9.31e-05,2]
[401311606,1768127432687,-5.09484168,9.31e-05,2]
[401311607,1768127432698,-248.70188828,9.31e-05,2]
[401311608,1768127432707,-500.0,9.31e-05,2]
[401311609,1768127432716,-500.0,9.31e-05,2]
[401311610,1768127432727,-500.0,9.31e-05,2]
[401311611,1768127432736,-500.0,9.31e-05,2]
[401311612,1768127432746,-500.0,9.31e-05,2]
[401311613,1768127432755,-500.0,9.31e-05,2]
[401311614,1768127432764,-500.0,9.31e-05,2]
[401311615,1768127432773,-500.0,9.31e-05,2]
[401311616,1768127432783,-500.0,9.31e-05,2]
[401311617,1768127432792,-650.74251735,9.31e-05,2]
[401311618,1768127432801,-300.0,9.31e-05,2]
[401311619,1768127432810,-550.0,9.31e-05,2]
[401311620,1768127432820,-420.19272903,9.31e-05,2]
[401311621,1768127432829,-3184.38996706,9.311e-05,2]
[401311622,1768127432841,-1123.02642622,9.311e-05,2]
[401311623,1768127432852,-89479.98257705,9.311e-05,2]
[401311634,1768127438595,-500.0,9.31e-05,2]
[401311635,1768127438605,-500.0,9.31e-05,2]
[401311636,1768127438615,-500.0,9.31e-05,2]
[401311637,1768127438625,-230.99558995,9.31e-05,2]
[401311638,1768127438634,-187.98945259,9.31e-05,2]
[401311639,1768127438648,-500.0,9.31e-05,2]
[401311640,1768127438658,-500.0,9.31e-05,2]
[401311641,1768127438667,-500.0,9.31e-05,2]
[401311642,1768127438678,-895695.98641254,9.311e-05,2]
[401311643,1768127438688,-414.12,9.411e-05,2]
[401311644,1768127438698,-300.0,9.599e-05,2]
[401311645,1768127438708,-300.0,9.599e-05,2]
[401311646,1768127438718,-300.0,9.599e-05,2]
[401311647,1768127438728,-300.0,9.599e-05,2]
[401311648,1768127438737,-300.0,9.599e-05,2]
[401311649,1768127438747,-300.0,9.599e-05,2]
[401311650,1768127438757,-300.0,9.599e-05,2]
[401311651,1768127438766,-300.0,9.599e-05,2]
[401311652,1768127438775,-300.0,9.599e-05,2]
[401311653,1768127438785,-300.0,9.599e-05,2]
[401311654,1768127438795,-300.0,9.599e-05,2]
[401311655,1768127438804,-300.0,9.599e-05,2]
[401311656,1768127438813,-300.0,9.599e-05,2]
[401311657,1768127438823,-300.0,9.599e-05,2]
[401311658,1768127438832,-300.0,9.599e-05,2]
[401311659,1768127438842,-425.28,9.6e-05,2]
[401311660,1768127438851,-414.12,9.685e-05,2]
[401311661,1768127438860,-600.0,9.79e-05,2]
[401311662,1768127438870,-414.12,9.959e-05,2]
[401311663,1768127438880,-333.99,0.0001,2]
[401311664,1768127438890,-425.28,0.000101,2]
[401311665,1768127438900,-333.99,0.000102,2]
[401311666,1768127438910,-414.12,0.00010233,2]
[401311667,1768127438920,-420.0,0.00010241,2]
[401311668,1768127438930,-333.99,0.000104,2]
[401311669,1768127438939,-500.0,0.000104,2]
[401311670,1768127438949,-414.15900327,0.00010507,2]
[401311671,1768127438958,-333.99,0.000106,2]
[401311672,1768127438968,-425.28,0.000106,2]
[401311673,1768127438978,-500.0,0.00010674,2]
[401311674,1768127438990,-720.0,0.00010769,2]
[401311675,1768127439000,-333.99,0.000108,2]
[401311676,1768127439010,-500.0,0.00010948,2]
[401311677,1768127439020,-333.99,0.00011,2]
[401311678,1768127439030,-425.28,0.000112,2]
[401311679,1768127439040,-500.0,0.00011222,2]
[401311680,1768127439050,-587.0,0.00011265,2]
[401311681,1768127439060,-500.0,0.00011274,2]
[401311682,1768127439070,-500.0,0.00011274,2]
[401311683,1768127439079,-176.23516734,0.00011274,2]
[401311684,1768127439088,-500.0,0.00011274,2]
[401311685,1768127439098,-171.65605742,0.00011274,2]
[401311686,1768127439108,-500.0,0.00011274,2]
[401311687,1768127439117,-190.86169873,0.00011274,2]
[401311688,1768127439127,-171.51692933,0.00011274,2]
[401311689,1768127439138,-500.0,0.00011274,2]
[401311690,1768127439148,-2628.0,0.00011274,2]
[401311691,1768127439158,-495.82742025,0.0001131,2]
[401311692,1768127439168,-500.0,0.00011411,2]
[401311693,1768127439178,-503.05659276,0.00011411,2]
[401311694,1768127439188,-500.0,0.00011411,2]
[401311695,1768127439198,-598.52490689,0.00011411,2]
[401311696,1768127439209,-500.0,0.00011411,2]
[401311697,1768127439221,-2628.0,0.00011411,2]
[401311698,1768127439230,-500.0,0.00011496,2]
[401311699,1768127439239,-500.0,0.00011548,2]
[401311700,1768127439250,-179.07075974,0.00011548,2]
[401311701,1768127439259,-500.0,0.00011548,2]
[401311702,1768127439268,-500.0,0.00011548,2]
[401311703,1768127439278,-163.14839871,0.00011548,2]
[401311704,1768127439288,-2628.0,0.00011548,2]
[401311705,1768127439298,-500.0,0.00011685,2]
[401311706,1768127439308,-500.0,0.00011685,2]
[401311707,1768127439317,-500.0,0.00011685,2]
[401311708,1768127439327,-2628.0,0.00011685,2]
[401311709,1768127439336,-425.28,0.000117,2]
[401311710,1768127439346,-500.0,0.0001177,2]
[401311711,1768127439356,-487.28484085,0.00011822,2]
[401311712,1768127439365,-263.97622948,0.00011822,2]
[401311713,1768127439375,-264.95729538,0.00011822,2]
[401311714,1768127439384,-500.0,0.00011822,2]
[401311715,1768127439394,-500.0,0.00011822,2]
[401311716,1768127439404,-2628.0,0.00011822,2]
[401311717,1768127439413,-864.0,0.00011846,2]
[401311718,1768127439423,-500.0,0.00011959,2]
[401311719,1768127439432,-500.0,0.00011959,2]
[401311720,1768127439442,-2628.0,0.00011959,2]
[401311721,1768127439453,-500.0,0.00012044,2]
[401311722,1768127439462,-500.0,0.00012096,2]
[401311723,1768127439471,-500.0,0.00012096,2]
[401311724,1768127439480,-2628.0,0.00012096,2]
[401311725,1768127439491,-425.28,0.000122,2]
[401311726,1768127439500,-500.0,0.00012233,2]
[401311727,1768127439510,-500.0,0.00012233,2]
[401311728,1768127439520,-2628.0,0.00012233,2]
[401311729,1768127439530,-250.0,0.00012302,2]
[401311730,1768127439539,-815.97,0.00012329,2]
[401311731,1768127439549,-679.97,0.00012329,2]
[401311732,1768127439558,-566.64,0.00012329,2]
[401311733,1768127439567,-472.2,0.00012329,2]
[401311734,1768127439579,-393.5,0.00012329,2]
[401311735,1768127439588,-327.92,0.00012329,2]
[401311736,1768127439598,-273.27,0.00012329,2]
[401311737,1768127439608,-227.72,0.00012329,2]
[401311738,1768127439618,-189.77,0.00012329,2]
[401311739,1768127439627,-158.14,0.00012329,2]
[401311740,1768127439636,-790.73,0.00012329,2]
[401311741,1768127439646,-1010.34100896,0.00012329,2]
[401311742,1768127439663,-1010.34100896,0.00012329,2]
[401311743,1768127439677,-1010.34100896,0.00012329,2]
[401311744,1768127439687,-1010.34100896,0.00012329,2]
[401311745,1768127439696,-1010.34100896,0.00012329,2]
[401311746,1768127439707,-1010.34100896,0.00012329,2]
[401311747,1768127439716,-1010.34100896,0.00012329,2]
[401311748,1768127439726,-1010.34100896,0.00012329,2]
[401311749,1768127439735,-1010.34100896,0.00012329,2]
[401311750,1768127439744,-1010.34100896,0.00012329,2]
[401311751,1768127439754,-1010.34100896,0.00012329,2]
[401311752,1768127439763,-1010.34100896,0.00012329,2]
[401311753,1768127439772,-1010.34100896,0.00012329,2]
[401311754,1768127439782,-1010.34100896,0.00012329,2]
[401311755,1768127439791,-1010.34100896,0.00012329,2]
[401311756,1768127439801,-1010.34100896,0.00012329,2]
[401311757,1768127439810,-1010.34100896,0.00012329,2]
[401311758,1768127439819,-1010.34100896,0.00012329,2]
[401311759,1768127439829,-1010.34100896,0.00012329,2]
[401311760,1768127439838,-1010.34100896,0.00012329,2]
[401311761,1768127439848,-1010.34100896,0.00012329,2]
[401311762,1768127439857,-1010.34100896,0.00012329,2]
[401311763,1768127439866,-1010.34100896,0.00012329,2]
[401311764,1768127439875,-1010.34100896,0.00012329,2]
[401311765,1768127439885,-1010.34100896,0.00012329,2]
[401311766,1768127439894,-1010.34100896,0.00012329,2]
[401311767,1768127439903,-1010.34100896,0.00012329,2]
[401311768,1768127439911,-1010.34100896,0.00012329,2]
[401311769,1768127439919,-1010.34100896,0.00012329,2]
[401311770,1768127439928,-1010.34100896,0.00012329,2]
[401311771,1768127439937,-1010.34100896,0.00012329,2]
[401311772,1768127439946,-1010.34100896,0.00012329,2]
[401311773,1768127439956,-1010.34100896,0.00012329,2]
[401311774,1768127439965,-1010.34100896,0.00012329,2]
[401311775,1768127439974,-1010.34100896,0.00012329,2]
[401311776,1768127439984,-1010.34100896,0.00012329,2]
[401311777,1768127439993,-1010.34100896,0.00012329,2]
[401311778,1768127440003,-1010.34100896,0.00012329,2]
[401311779,1768127440012,-1010.34100896,0.00012329,2]
[401311780,1768127440022,-1010.34100896,0.00012329,2]
[401311781,1768127440031,-1010.34100896,0.00012329,2]
[401311782,1768127440041,-1010.34100896,0.00012329,2]
[401311783,1768127440052,-1010.34100896,0.00012329,2]
[401311784,1768127440061,-1010.34100896,0.00012329,2]
[401311785,1768127440071,-1010.34100896,0.00012329,2]
[401311786,1768127440080,-1010.34100896,0.00012329,2]
[401311787,1768127440089,-1010.34100896,0.00012329,2]
[401311788,1768127440099,-1010.34100896,0.00012329,2]
[401311789,1768127440108,-1010.34100896,0.00012329,2]
[401311790,1768127440119,-1010.34100896,0.00012329,2]
[401311791,1768127440128,-1010.34100896,0.00012329,2]
[401311792,1768127440138,-1010.34100896,0.00012329,2]
[401311793,1768127440148,-1010.34100896,0.00012329,2]
[401311794,1768127440158,-1010.34100896,0.00012329,2]
[401311795,1768127440167,-1010.34100896,0.00012329,2]
[401311796,1768127440178,-1010.34100896,0.00012329,2]
[401311797,1768127440188,-1010.34100896,0.00012329,2]
[401311798,1768127440198,-1010.34100896,0.00012329,2]
[401311799,1768127440211,-1010.34100896,0.00012329,2]
[401311800,1768127440220,-1010.34100896,0.00012329,2]
[401311802,1768127440230,-1010.34100896,0.00012329,2]
[401311804,1768127440242,-1010.34100896,0.00012329,2]
[401311805,1768127440252,-1010.34100896,0.00012329,2]
[401311806,1768127440263,-1010.34100896,0.00012329,2]
[401311807,1768127440273,-1010.34100896,0.00012329,2]
[401311808,1768127440283,-500.0,0.0001237,2]
[401311809,1768127440293,-500.0,0.0001237,2]
[401311810,1768127440305,-2628.0,0.0001237,2]
[401311811,1768127440317,-823.0,0.00012392,2]
[401311812,1768127440327,-3521.30514597,0.000125,2]
[401311813,1768127440338,-500.0,0.00012507,2]
[401311814,1768127440348,-2628.0,0.00012507,2]
[401311815,1768127440357,-500.0,0.00012507,2]
[401311816,1768127440367,-620.9785477,0.00012644,2]
[401311817,1768127440376,-2628.0,0.00012644,2]
[401311818,1768127440386,-623.15407208,0.00012644,2]
[401311819,1768127440396,-425.28,0.000127,2]
[401311820,1768127440406,-2628.0,0.00012781,2]
[401311821,1768127440415,-13426.51869245,0.000129,2]
[401311822,1768127440425,-13426.51869245,0.000129,2]
[401311823,1768127440434,-2628.0,0.00012918,2]
[401311824,1768127440443,-1000.0,0.0001303,2]
[401311825,1768127440453,-2628.0,0.00013055,2]
[401311826,1768127440462,-2628.0,0.00013192,2]
[401311827,1768127440471,-425.28,0.000132,2]
[401311828,1768127440480,-13426.51869244,0.0001323,2]
[401311829,1768127440496,-13426.51869244,0.0001323,2]
[401311830,1768127440507,-500.0,0.00013273,2]
[401311831,1768127440517,-500.0,0.00013273,2]
[401311832,1768127440527,-500.0,0.00013273,2]
[401311833,1768127440537,-500.0,0.00013273,2]
[401311835,1768127440548,-500.0,0.00013273,2]
[401311837,1768127440557,-500.0,0.00013273,2]
[401311839,1768127440567,-501.02698451,0.00013273,2]
[401311841,1768127440577,-500.0,0.00013273,2]
[401311843,1768127440586,-500.0,0.00013273,2]
[401311845,1768127440595,-500.0,0.00013273,2]
[401311847,1768127440605,-500.0,0.00013273,2]
[401311849,1768127440614,-500.0,0.00013273,2]
[401311851,1768127440624,-500.0,0.00013273,2]
[401311854,1768127440634,-500.0,0.00013273,2]
[401311870,1768127440779,-500.0,0.00013273,2]
[401311872,1768127440788,-500.0,0.00013273,2]
[401311874,1768127440798,-500.0,0.00013273,2]
[401311876,1768127440806,-500.0,0.00013273,2]
[401311878,1768127440815,-500.24269708,0.00013273,2]
[401311880,1768127440824,-500.0,0.00013273,2]
[401311882,1768127440834,-500.0,0.00013273,2]
[401311884,1768127440843,-500.0,0.00013273,2]
[401311886,1768127440852,-500.0,0.00013273,2]
[401311888,1768127440861,-500.0,0.00013273,2]
[401311890,1768127440870,-500.0,0.00013273,2]
[401311892,1768127440879,-500.0,0.00013273,2]
[401311894,1768127440888,-500.0,0.00013273,2]
[401311896,1768127440897,-500.0,0.00013273,2]
[401311898,1768127440906,-500.0,0.00013273,2]
[401311900,1768127440915,-500.0,0.00013273,2]
[401311902,1768127440925,-500.0,0.00013273,2]
[401311904,1768127440934,-500.0,0.00013273,2]
[401311906,1768127440943,-500.0,0.00013273,2]
[401311908,1768127440954,-500.0,0.00013273,2]
[401311910,1768127440963,-500.0,0.00013273,2]
[401311912,1768127440971,-501.21467235,0.00013273,2]
[401311914,1768127440980,-500.0,0.00013273,2]
[401311916,1768127440990,-500.0,0.00013273,2]
[401311920,1768127441001,-495.22027723,0.00013273,2]
[401311923,1768127441012,-500.0,0.00013273,2]
[401311927,1768127441022,-500.0,0.00013273,2]
[401311929,1768127441031,-500.0,0.00013273,2]
[401311932,1768127441041,-500.29461734,0.00013273,2]
[401311935,1768127441051,-500.0,0.00013273,2]
[401311939,1768127441060,-206.51680322,0.00013273,2]
[401311941,1768127441069,-500.0,0.00013273,2]
[401311945,1768127441078,-500.0,0.00013273,2]
[401311948,1768127441088,-402.502339,0.00013273,2]
[401311950,1768127441097,-500.0,0.00013273,2]
[401311954,1768127441107,-500.0,0.00013273,2]
[401311956,1768127441116,-500.0,0.00013273,2]
[401311961,1768127441130,-500.0,0.00013273,2]
[401311963,1768127441139,-571.46211148,0.0001331,2]
[401311965,1768127441149,-2628.0,0.00013329,2]
[401311967,1768127441158,-2628.0,0.00013466,2]
[401311969,1768127441166,-2628.0,0.00013603,2]
[401311971,1768127441176,-1152.0,0.00013631,2]
[401311973,1768127441185,-500.0,0.00013698,2]
[401311975,1768127441194,-500.0,0.00013698,2]
[401311977,1768127441203,-500.0,0.00013698,2]
[401311979,1768127441215,-500.0,0.00013698,2]
[401311981,1768127441224,-500.0,0.00013698,2]
[401311983,1768127441233,-500.0,0.00013698,2]
[401311985,1768127441242,-500.0,0.00013698,2]
[401311987,1768127441252,-500.0,0.00013698,2]
[401311989,1768127441263,-500.0,0.00013698,2]
[401311991,1768127441272,-500.0,0.00013698,2]
[401311993,1768127441281,-500.0,0.00013698,2]
[401311995,1768127441291,-500.0,0.00013698,2]
[401311997,1768127441300,-500.0,0.00013698,2]
[401311999,1768127441308,-500.0,0.00013698,2]
[401312001,1768127441317,-534.57834013,0.00013698,2]
[401312003,1768127441326,-1000.0,0.00013698,2]
[401312004,1768127441335,-1000.0,0.00013698,2]
[401312006,1768127441344,-1000.0,0.00013698,2]
[401312008,1768127441354,-1000.0,0.00013698,2]
[401312010,1768127441362,-1000.0,0.00013698,2]
[401312012,1768127441372,-1000.0,0.00013698,2]
[401312014,1768127441381,-593.71236514,0.00013698,2]
[401312016,1768127441391,-500.0,0.00013698,2]
[401312018,1768127441400,-500.0,0.00013698,2]
[401312020,1768127441410,-500.0,0.00013698,2]
[401312022,1768127441420,-500.0,0.00013698,2]
[401312025,1768127441430,-500.0,0.00013698,2]
[401312026,1768127441439,-500.0,0.00013698,2]
[401312029,1768127441450,-500.0,0.00013698,2]
[401312031,1768127441460,-500.0,0.00013698,2]
[401312032,1768127441470,-500.0,0.00013698,2]
[401312034,1768127441480,-374.07409846,0.00013698,2]
[401312036,1768127441489,-150.1,0.00013699,2]
[401312038,1768127441499,-2096.819629,0.00013699,2]
[401312041,1768127441509,-11917.9034833,0.00013699,2]
[401312043,1768127441519,-1000.0,0.00013699,2]
[401312045,1768127441528,-500.0,0.00013699,2]
[401312047,1768127441538,-500.0,0.00013699,2]
[401312048,1768127441547,-611.85295008,0.00013699,2]
[401312051,1768127441556,-500.0,0.00013699,2]
[401312053,1768127441565,-500.0,0.00013699,2]
[401312054,1768127441575,-500.0,0.00013699,2]
[401312056,1768127441583,-500.0,0.00013699,2]
[401312058,1768127441592,-500.0,0.00013699,2]
[401312060,1768127441601,-500.0,0.00013699,2]
[401312062,1768127441611,-500.0,0.00013699,2]
[401312064,1768127441620,-500.0,0.00013699,2]
[401312066,1768127441629,-500.0,0.00013699,2]
[401312068,1768127441639,-252.75899042,0.00013699,2]
[401312070,1768127441648,-500.0,0.00013699,2]
[401312072,1768127441657,-159.05967354,0.00013699,2]
[401312074,1768127441667,-500.0,0.00013699,2]
[401312076,1768127441676,-192.77974704,0.00013699,2]
[401312079,1768127441685,-500.0,0.00013699,2]
[401312081,1768127441695,-500.0,0.00013699,2]
[401312083,1768127441704,-500.0,0.00013699,2]
[401312085,1768127441713,-500.0,0.00013699,2]
[401312086,1768127441722,-500.0,0.00013699,2]
[401312089,1768127441732,-500.0,0.00013699,2]
[401312090,1768127441741,-252.81793801,0.00013699,2]
[401312093,1768127441750,-500.0,0.00013699,2]
[401312094,1768127441759,-500.93038909,0.00013699,2]
[401312097,1768127441769,-500.0,0.00013699,2]
[401312099,1768127441778,-250.0,0.00013699,2]
[401312101,1768127441791,-500.0,0.00013699,2]
[401312103,1768127441800,-500.0,0.00013699,2]
[401312105,1768127441808,-500.0,0.00013699,2]
[401312107,1768127441817,-500.0,0.00013699,2]
[401312109,1768127441826,-500.0,0.00013699,2]
[401312111,1768127441834,-500.0,0.00013699,2]
[401312113,1768127441843,-500.0,0.00013699,2]
[401312115,1768127441852,-500.31275461,0.00013699,2]
[401312117,1768127441861,-413.61388111,0.00013699,2]
[401312119,1768127441870,-500.0,0.00013699,2]
[401312121,1768127441879,-500.0,0.00013699,2]
[401312123,1768127441887,-500.0,0.00013699,2]
[401312125,1768127441896,-500.0,0.00013699,2]
[401312127,1768127441905,-500.0,0.00013699,2]
[401312129,1768127441914,-500.0,0.00013699,2]
[401312131,1768127441923,-500.0,0.00013699,2]
[401312132,1768127441932,-504.31837873,0.00013699,2]
[401312134,1768127441941,-500.0,0.00013699,2]
[401312137,1768127441950,-500.0,0.00013699,2]
[401312138,1768127441960,-500.0,0.00013699,2]
[401312141,1768127441969,-500.0,0.00013699,2]
[401312142,1768127441978,-500.0,0.00013699,2]
[401312144,1768127441987,-500.0,0.00013699,2]
[401312147,1768127441996,-500.0,0.00013699,2]
[401312148,1768127442006,-500.0,0.00013699,2]
[401312151,1768127442015,-500.0,0.00013699,2]
[401312153,1768127442024,-500.0,0.00013699,2]
[401312155,1768127442033,-500.0,0.00013699,2]
[401312156,1768127442042,-295.9151759,0.00013699,2]
[401312158,1768127442051,-500.0,0.00013699,2]
[401312160,1768127442060,-345.73139261,0.00013699,2]
[401312163,1768127442069,-500.0,0.00013699,2]
[401312164,1768127442079,-500.0,0.00013699,2]
[401312167,1768127442088,-268.13097792,0.00013699,2]
[401312169,1768127442097,-500.0,0.00013699,2]
[401312170,1768127442106,-500.0,0.00013699,2]
[401312173,1768127442115,-441.79967602,0.00013699,2]
[401312174,1768127442124,-500.0,0.00013699,2]
[401312176,1768127442133,-500.0,0.00013699,2]
[401312179,1768127442143,-500.0,0.00013699,2]
[401312181,1768127442152,-500.0,0.00013699,2]
[401312182,1768127442161,-500.0,0.00013699,2]
[401312185,1768127442170,-500.0,0.00013699,2]
[401312187,1768127442179,-500.0,0.00013699,2]
[401312188,1768127442189,-501.32276914,0.00013699,2]
[401312191,1768127442198,-366.95119537,0.00013699,2]
[401312192,1768127442211,-425.28,0.000137,2]
[401312195,1768127442220,-2628.0,0.0001374,2]
[401312196,1768127442230,-1113.91769968,0.00013821,2]
[401312198,1768127442239,-1000.0,0.00013821,2]
[401312200,1768127442248,-1000.0,0.00013821,2]
[401312202,1768127442257,-1046.83647191,0.00013821,2]
[401312204,1768127442267,-1000.0,0.00013821,2]
[401312206,1768127442275,-506.38443798,0.00013821,2]
[401312208,1768127442285,-1000.0,0.00013821,2]
[401312210,1768127442294,-1000.0,0.00013821,2]
[401312212,1768127442303,-1000.0,0.00013821,2]
[401312214,1768127442312,-1000.0,0.00013821,2]
[401312216,1768127442320,-491.49484352,0.00013821,2]
[401312218,1768127442329,-1000.0,0.00013821,2]
[401312220,1768127442339,-1000.0,0.00013821,2]
[401312222,1768127442348,-1000.0,0.00013821,2]
[401312224,1768127442357,-1000.0,0.00013821,2]
[401312226,1768127442366,-1000.0,0.00013821,2]
[401312228,1768127442375,-1000.0,0.00013821,2]
[401312230,1768127442384,-1000.0,0.00013821,2]
[401312232,1768127442393,-1000.0,0.00013821,2]
[401312234,1768127442403,-501.6206004,0.00013821,2]
[401312236,1768127442411,-1000.0,0.00013821,2]
[401312238,1768127442420,-1002.2053155,0.00013821,2]
[401312239,1768127442430,-178.09775665,0.00013821,2]
[401312240,1768127442439,-502.34729237,0.00013821,2]
[401312241,1768127442448,-1000.0,0.00013821,2]
[401312242,1768127442458,-1000.0,0.00013821,2]
[401312243,1768127442467,-1000.0,0.00013821,2]
[401312244,1768127442476,-1000.0,0.00013821,2]
[401312245,1768127442485,-1000.0,0.00013821,2]
[401312246,1768127442495,-1000.0,0.00013821,2]
[401312247,1768127442504,-1000.0,0.00013821,2]
[401312248,1768127442513,-1000.0,0.00013821,2]
[401312249,1768127442523,-1000.0,0.00013821,2]
[401312250,1768127442533,-1000.0,0.00013821,2]
[401312251,1768127442543,-973.2526551,0.00013821,2]
[401312252,1768127442552,-877.75810228,0.00013821,2]